fUSD/lending_fUSD_20251226
["ID","MTS","AMOUNT","RATE_DAILY","PERIOD"]
[399847264,1766736637637,-500.0,0.00013356,2]
[399847266,1766736637647,-500.0,0.00013356,2]
[399847268,1766736637656,-500.0,0.00013356,2]
[399847270,1766736637667,-500.0,0.00013356,2]
[399847272,1766736637677,-500.0,0.00013356,2]
[399847273,1766736637687,-500.0,0.00013356,2]
[399847274,1766736637697,-550.0,0.00013356,2]
[399847275,1766736637707,-500.0,0.00013356,2]
[399847276,1766736637717,-27933.5562345,0.00013358,2]
[399847277,1766736637730,-57836.87678479,0.00013358,2]
[399847278,1766736637741,-166.66,0.00013374,2]
[399847279,1766736637754,-250.0,0.00013542,2]
[399847280,1766736637767,-300.0,0.00013542,2]
[399847281,1766736637778,-250.0,0.00013542,2]
[399847282,1766736637790,-195.0,0.00013542,2]
[399847283,1766736637801,-346.1,0.00013559,2]
[399847284,1766736637811,-9951.2,0.00013588,2]
[399847285,1766736637822,-500.0,0.00013631,2]
[399847286,1766736637832,-166.66,0.00013639,2]
[399847287,1766736637842,-195.0,0.0001364,2]
[399847288,1766736637853,-300.0,0.0001364,2]
[399847289,1766736637863,-164.6586,0.00013661,2]
[399847290,1766736637873,-380.499,0.00013661,2]
[399847291,1766736637883,-533.16,0.00013662,2]
[399847292,1766736637893,-5662.01086952,0.00013663,2]
[399847293,1766736637903,-1000.0,0.00013699,2]
[399847294,1766736637914,-500.0,0.00013699,2]
[399847295,1766736637923,-500.0,0.00013699,2]
[399847296,1766736637933,-500.0,0.00013699,2]
[399847297,1766736637943,-408.37434178,0.00013699,2]
[399847298,1766736637953,-151.0,0.00013753,2]
[399847299,1766736637963,-151.0,0.00013753,2]
[399847300,1766736637974,-151.0,0.00013753,2]
[399847301,1766736637986,-151.0,0.00013753,2]
[399847302,1766736637995,-151.0,0.00013753,2]
[399847304,1766736638007,-151.0,0.00013753,2]
[399847306,1766736638017,-151.0,0.00013753,2]
[399847309,1766736638027,-151.0,0.00013753,2]
[399847311,1766736638037,-151.0,0.00013753,2]
[399847312,1766736638047,-151.0,0.00013753,2]
[399847314,1766736638058,-151.0,0.00013753,2]
[399847316,1766736638070,-151.0,0.00013753,2]
[399847318,1766736638080,-151.0,0.00013753,2]
[399847320,1766736638090,-151.0,0.00013753,2]
[399847321,1766736638100,-151.0,0.00013753,2]
[399847323,1766736638111,-151.0,0.00013753,2]
[399847324,1766736638122,-1087.769,0.00013758,2]
[399847325,1766736638132,-508.94000126,0.0001376,2]
[399847326,1766736638142,-500.0,0.0001376,2]
[399847327,1766736638153,-500.0,0.0001376,2]
[399847328,1766736638163,-521.85857843,0.0001376,2]
[399847329,1766736638174,-500.0,0.0001376,2]
[399847330,1766736638185,-500.0,0.0001376,2]
[399847331,1766736638195,-500.0,0.0001376,2]
[399847332,1766736638206,-500.0,0.0001376,2]
[399847333,1766736638218,-457.42264736,0.0001376,2]
[399847334,1766736638228,-401.81017686,0.0001376,2]
[399847335,1766736638242,-98.18982314,0.0001376,2]
[399847336,1766736638253,-500.0,0.0001376,2]
[399847337,1766736638264,-500.0,0.0001376,2]
[399847338,1766736638274,-90.55640177,0.0001376,2]
[399847339,1766736638287,-409.44359823,0.0001376,2]
[399847340,1766736638297,-500.0,0.0001376,2]
[399847341,1766736638308,-502.50439874,0.0001376,2]
[399847342,1766736638318,-500.0,0.0001376,2]
[399847343,1766736638329,-546.74327399,0.0001376,2]
[399847344,1766736638340,-509.01400856,0.0001376,2]
[399847345,1766736638350,-514.13396441,0.0001376,2]
[399847346,1766736638360,-500.0,0.0001376,2]
[399847347,1766736638370,-501.58252397,0.0001376,2]
[399847348,1766736638380,-500.0,0.0001376,2]
[399847349,1766736638391,-500.0,0.0001376,2]
[399847350,1766736638401,-500.0,0.0001376,2]
[399847351,1766736638411,-233.20101617,0.0001376,2]
[399847353,1766736638422,-510.70790146,0.0001376,2]
[399847354,1766736638432,-500.0,0.0001376,2]
[399847355,1766736638760,-500.0,0.0001376,2]
[399847356,1766736638771,-500.0,0.0001376,2]
[399847357,1766736638782,-500.0,0.0001376,2]
[399847358,1766736638792,-112.86931447,0.0001376,2]
[399847359,1766736638804,-387.13068553,0.0001376,2]
[399847360,1766736638814,-500.0,0.0001376,2]
[399847361,1766736638824,-500.0,0.0001376,2]
[399847362,1766736638834,-509.72100546,0.0001376,2]
[399847363,1766736638844,-503.01431449,0.0001376,2]
[399847364,1766736638854,-6861.754,0.00013763,2]
[399847365,1766736638866,-1000.0,0.00013763,2]
[399847366,1766736638876,-506.90698062,0.00013862,2]
[399847367,1766736638886,-500.0,0.00013862,2]
[399847368,1766736638897,-511.91710002,0.00013862,2]
[399847369,1766736638907,-500.0,0.00013862,2]
[399847370,1766736638918,-501.63399008,0.00013862,2]
[399847371,1766736638929,-166.66,0.00013904,2]
[399847372,1766736638939,-500.0,0.00013905,2]
[399847373,1766736638950,-533.16,0.00013936,2]
[399847374,1766736638960,-18362.98472091,0.00014052,2]
[399847375,1766736638973,-5739.18585998,0.00014052,2]
[399847376,1766736638988,-13723.7384882,0.00014052,2]
[399847377,1766736639002,-657.18115446,0.00014052,2]
[399847378,1766736639015,-412.72342803,0.00014052,2]
[399847379,1766736639028,-443.09974404,0.00014052,2]
[399847380,1766736639041,-4203.87050542,0.00014052,2]
[399847381,1766736639059,-4429.18871116,0.00014052,2]
[399847382,1766736639078,-1294.81404362,0.00014052,2]
[399847384,1766736639761,-19133.03910435,0.00014052,2]
[399847385,1766736639772,-151.68,0.00014052,2]
[399847386,1766736639783,-500.0,0.00014179,2]
[399847387,1766736639793,-533.16,0.0001421,2]
[399847388,1766736639803,-500.0,0.00014453,2]
[399847389,1766736639813,-255.0,0.00014465,2]
[399847390,1766736639824,-533.16,0.00014484,2]
[399847391,1766736639833,-173.05731677,0.00014627,2]
[399847392,1766736639843,-1270.0,0.00014642,2]
[399847393,1766736639853,-420.0,0.00014642,2]
[399847394,1766736639863,-420.0,0.00014642,2]
[399847395,1766736639874,-1680.0,0.00014692,2]
[399847396,1766736639884,-500.0,0.00014727,2]
[399847397,1766736639894,-533.16,0.00014758,2]
[399847398,1766736639904,-151.0,0.00014911,2]
[399847399,1766736639914,-151.0,0.00014911,2]
[399847400,1766736639924,-500.0,0.00015001,2]
[399847401,1766736639934,-500.0,0.00015135,2]
[399847402,1766736639944,-173.61225679,0.00015135,2]
[399847403,1766736639955,-500.0,0.00015135,2]
[399847404,1766736639965,-500.0,0.00015173,2]
[399847405,1766736639975,-230.98283811,0.00015173,2]
[399847406,1766736639990,-333.75918667,0.00015173,2]
[399847407,1766736640000,-500.0,0.00015173,2]
[399847408,1766736640010,-200.27562112,0.00015173,2]
[399847409,1766736640021,-500.89852069,0.00015173,2]
[399847410,1766736640032,-500.0,0.00015173,2]
[399847411,1766736640043,-500.0,0.00015173,2]
[399847412,1766736640053,-168.40038853,0.00015173,2]
[399847413,1766736640065,-500.40933379,0.00015173,2]
[399847414,1766736640076,-500.76420326,0.00015173,2]
[399847415,1766736640086,-500.0,0.00015173,2]
[399847416,1766736640096,-206.77102158,0.00015173,2]
[399847417,1766736640107,-500.0,0.00015173,2]
[399847418,1766736640118,-500.0,0.00015173,2]
[399847419,1766736640128,-500.0,0.00015173,2]
[399847420,1766736640139,-501.0445462,0.00015173,2]
[399847421,1766736640150,-500.88737108,0.00015173,2]
[399847422,1766736640160,-500.0,0.00015173,2]
[399847423,1766736640171,-331.00488176,0.00015173,2]
[399847424,1766736640182,-160.69712544,0.00015173,2]
[399847425,1766736640192,-590.62865017,0.00015173,2]
[399847426,1766736640201,-151.0,0.00015244,2]
[399847427,1766736640211,-500.0,0.00015275,2]
[399847428,1766736640220,-510.36426481,0.00015549,2]
[399847429,1766736640229,-433.0,0.00015667,2]
[399847430,1766736640240,-511.82107275,0.00015721,2]
[399847431,1766736640250,-163.47849716,0.00015721,2]
[399847432,1766736640260,-516.27997317,0.00015721,2]
[399847433,1766736640270,-500.85707724,0.00015721,2]
[399847434,1766736640280,-1000.0,0.00015721,2]
[399847435,1766736640290,-1000.0,0.00015721,2]
[399847436,1766736640299,-913.88399981,0.00015721,2]
[399847437,1766736640309,-1000.0,0.00015721,2]
[399847438,1766736640318,-1000.0,0.00015721,2]
[399847439,1766736640327,-500.97468211,0.00015829,2]
[399847440,1766736640337,-284.22138975,0.00016004,2]
[399847441,1766736640347,-587.0,0.00016051,2]
[399847442,1766736640356,-587.0,0.00016051,2]
[399847443,1766736640366,-6507.64,0.00016116,2]
[399847444,1766736640375,-2351.0,0.00016161,2]
[399847445,1766736640385,-25500.13,0.00016199,2]
[399847446,1766736640394,-170.0,0.00016278,2]
[399847447,1766736640403,-170.0,0.00016287,2]
[399847448,1766736640413,-250.0,0.00016384,2]
[399847449,1766736640423,-170.0,0.00016425,2]
[399847450,1766736640433,-170.0,0.0001643,2]
[399847451,1766736640442,-3872.14450341,0.00016438,2]
[399847452,1766736640452,-5099.0763453,0.00016438,2]
[399847453,1766736640461,-279.92160861,0.00016438,2]
[399847454,1766736640471,-500.0,0.00016438,2]
[399847455,1766736640481,-500.0,0.00016438,2]
[399847456,1766736640491,-500.0,0.00016438,2]
[399847457,1766736640501,-500.0,0.00016438,2]
[399847458,1766736640510,-500.0,0.00016438,2]
[399847459,1766736640520,-500.0,0.00016438,2]
[399847460,1766736640529,-500.0,0.00016438,2]
[399847461,1766736640539,-400.0,0.00016438,2]
[399847462,1766736640549,-500.0,0.00016438,2]
[399847463,1766736640560,-500.0,0.00016438,2]
[399847464,1766736640570,-500.0,0.00016438,2]
[399847465,1766736640580,-170.0,0.00016457,2]
[399847466,1766736640589,-170.0,0.00016461,2]
[399847467,1766736640599,-4057.01190082,0.00016494,2]
[399847468,1766736640610,-170.0,0.00016526,2]
[399847469,1766736640620,-345.98197761,0.00016576,2]
[399847470,1766736640630,-170.0,0.00016697,2]
[399847471,1766736640640,-170.0,0.00016773,2]
[399847472,1766736640650,-5662.01086947,0.00016854,2]
[399847473,1766736640660,-170.0,0.00016855,2]
[399847474,1766736640670,-170.0,0.00016881,2]
[399847475,1766736640681,-170.0,0.00016905,2]
[399847476,1766736640692,-9999.99,0.00016922,2]
[399847477,1766736640703,-170.0,0.00016928,2]
[399847478,1766736640714,-224.26747292,0.00016942,2]
[399847479,1766736640725,-360.0,0.00016962,2]
[399847480,1766736640735,-25000.0,0.00016974,3]
[399847481,1766736640746,-25000.0,0.00016982,3]
[399847482,1766736640761,-500.0,0.0001699,2]
[399847483,1766736640772,-500.0,0.0001699,2]
[399847484,1766736640783,-25000.0,0.00016991,3]
[399847485,1766736640794,-170.0,0.00016995,2]
[399847486,1766736640804,-25000.0,0.00017,3]
[399847487,1766736640814,-250.2,0.00017,7]
[399847488,1766736640825,-250.0,0.00017,2]
[399847489,1766736640835,-170.0,0.0001708,2]
[399847490,1766736640845,-170.0,0.00017257,2]
[399847491,1766736640855,-170.0,0.00017293,2]
[399847492,1766736640865,-170.0,0.00017323,2]
[399847493,1766736640875,-170.0,0.00017441,2]
[399847494,1766736640885,-170.0,0.00017484,2]
[399847495,1766736640895,-170.0,0.00017506,2]
[399847496,1766736640906,-170.0,0.00017562,2]
[399847497,1766736640916,-622.0,0.00017597,2]
[399847498,1766736640926,-300.0,0.00017597,2]
[399847499,1766736640937,-170.0,0.00017604,2]
[399847500,1766736640947,-170.0,0.00017631,2]
[399847501,1766736640957,-170.0,0.00017683,2]
[399847502,1766736640968,-1200.0,0.00017777,2]
[399847503,1766736640978,-551.26109149,0.000185,2]
[399847504,1766736640990,-293.0,0.00018779,2]
[399847505,1766736641003,-300.0,0.00019,2]
[399847506,1766736641013,-564.0,0.00019079,2]
[399847507,1766736641023,-2430.0,0.00019079,2]
[399847508,1766736641035,-4808.0,0.00019079,2]
[399847509,1766736641046,-309.66881756,0.00019082,2]
[399847510,1766736641056,-1327.0,0.00019547,2]
[399847511,1766736641067,-612.0,0.00019547,2]
[399847512,1766736641078,-3459.0,0.00019547,2]
[399847513,1766736641088,-432.0,0.00019547,2]
[399847514,1766736641098,-1263.0,0.00019547,2]
[399847515,1766736641107,-4057.01190082,0.0001973,2]
[399847516,1766736641117,-5662.01086947,0.00020045,2]
[399847517,1766736641128,-1000.0,0.00020187,2]
[399847518,1766736641139,-168.18799133,0.00020896,2]
[399847519,1766736641149,-293.0,0.00020933,2]
[399847520,1766736641160,-350.0,0.00021,2]
[399847521,1766736641171,-500.0,0.00021918,2]
[399847522,1766736641181,-500.0,0.00021918,2]
[399847523,1766736641192,-500.0,0.00021918,2]
[399847524,1766736641203,-500.0,0.00021918,2]
[399847525,1766736641214,-250.0,0.00021918,2]
[399847526,1766736641225,-564.0,0.00022079,2]
[399847527,1766736641235,-2430.0,0.00022079,2]
[399847528,1766736641245,-1327.0,0.00022547,2]
[399847529,1766736641257,-612.0,0.00022547,2]
[399847530,1766736641267,-1373.087,0.00022547,2]
[399847531,1766736641278,-432.0,0.00022547,2]
[399847532,1766736641289,-1263.0,0.00022547,2]
[399847533,1766736641300,-193.1,0.000226,7]
[399847534,1766736641311,-4057.01190082,0.00022967,2]
[399847535,1766736641323,-400.0,0.00023,2]
[399847536,1766736641334,-293.0,0.00023087,2]
[399847537,1766736641345,-5662.01086947,0.00023237,2]
[399847538,1766736641356,-3019.0,0.0002365,2]
[399847539,1766736641367,-750.61,0.000246,14]
[399847540,1766736641378,-226.49,0.00024638,2]
[399847541,1766736641388,-2674.354,0.000247,2]
[399847542,1766736641399,-500.0,0.00024799,2]
[399847543,1766736641410,-500.0,0.00024799,2]
[399847544,1766736641420,-353.09426518,0.00024799,2]
[399847545,1766736641432,-382786.234676,0.000248,3]
[399847546,1766736641443,-258.98774802,0.0002489,2]
[399847547,1766736641455,-500.0,0.00024899,2]
[399847548,1766736641465,-500.0,0.00024899,2]
[399847549,1766736641476,-500.0,0.00024899,2]
[399847550,1766736641487,-500.0,0.00024899,2]
[399847551,1766736641498,-326059.351102,0.000249,3]
[399847552,1766736641508,-150.0,0.00025,2]
[399847553,1766736641519,-150.0,0.00025,2]
[399847554,1766736641530,-150.47,0.00025,2]
[399847555,1766736641541,-564.0,0.00025079,2]
[399847556,1766736641553,-2430.0,0.00025079,2]
[399847557,1766736641564,-293.0,0.00025241,2]
[399847558,1766736641575,-388.22094447,0.00025522,2]
[399847559,1766736641585,-1327.0,0.00025547,2]
[399847560,1766736641597,-612.0,0.00025547,2]
[399847561,1766736641607,-432.0,0.00025547,2]
[399847562,1766736641618,-1263.0,0.00025547,2]
[399847563,1766736641629,-4057.01190082,0.00026203,2]
[399847564,1766736641639,-5662.01086947,0.00026428,2]
[399847565,1766736641652,-1000.0,0.00026676,2]
[399847566,1766736641663,-365.15391753,0.00026713,2]
[399847567,1766736641674,-150.0,0.00027369,2]
[399847568,1766736641685,-293.0,0.00027395,2]
[399847569,1766736641696,-300.0,0.00027397,2]
[399847570,1766736641706,-564.0,0.00028079,2]
[399847571,1766736641717,-2430.0,0.00028079,2]
[399847572,1766736641728,-168.18799133,0.00028129,2]
[399847573,1766736641740,-1327.0,0.00028547,2]
[399847574,1766736641751,-612.0,0.00028547,2]
[399847575,1766736641763,-432.0,0.00028547,2]
[399847576,1766736641774,-1263.0,0.00028547,2]
[399847577,1766736641785,-237.4,0.00029247,2]
[399847578,1766736641796,-177.45,0.00029337,14]
[399847579,1766736641807,-4057.01190082,0.00029439,2]
[399847580,1766736641819,-293.0,0.00029549,2]
[399847581,1766736641830,-5662.01086947,0.00029619,2]
[399847582,1766736641840,-485.0,0.00030137,7]
[399847583,1766736641851,-353.09426517,0.00030746,3]
[399847584,1766736641862,-316.0,0.00030796,30]
[399847585,1766736641874,-1000.0,0.00030998,11]
[399847586,1766736641885,-564.0,0.00031079,2]
[399847587,1766736641896,-2430.0,0.00031079,2]
[399847588,1766736641906,-167.43,0.000311,30]
[399847589,1766736641917,-625.51,0.000311,14]
[399847590,1766736641973,-217.99,0.00031507,120]
[399847591,1766736641987,-1327.0,0.00031547,2]
[399847592,1766736641998,-612.0,0.00031547,2]
[399847593,1766736642010,-432.0,0.00031547,2]
[399847594,1766736642022,-293.0,0.00031704,2]
[399847595,1766736642032,-226.49,0.00032294,2]
[399847596,1766736642043,-4057.01190082,0.00032675,2]
[399847597,1766736642053,-5662.01086947,0.0003281,2]
[399847598,1766736642066,-567.90737623,0.00032876,120]
[399847599,1766736642076,-500.0,0.00032876,120]
[399847600,1766736642086,-500.0,0.00032876,60]
[399847601,1766736642096,-500.0,0.00032876,60]
[399847602,1766736642107,-500.0,0.00032876,60]
[399847603,1766736642119,-500.0,0.00032876,60]
[399847604,1766736642130,-500.0,0.00032876,60]
[399847605,1766736642140,-500.0,0.00032876,60]
[399847606,1766736642150,-500.0,0.00032876,60]
[399847607,1766736642160,-500.0,0.00032876,60]
[399847608,1766736642172,-474.61758735,0.00032876,120]
[399847609,1766736642183,-500.0,0.00032876,120]
[399847610,1766736642194,-500.0,0.00032876,120]
[399847611,1766736642204,-340.28398348,0.00032876,120]
[399847612,1766736642215,-442.98222089,0.00032876,120]
[399847613,1766736642225,-444.66686991,0.00032876,120]
[399847614,1766736642235,-295.63715668,0.00032876,120]
[399847615,1766736642246,-342.51958715,0.00032876,120]
[399847616,1766736642266,-206.48649483,0.00032876,120]
[399847617,1766736642277,-503.1655015,0.00032876,120]
[399847618,1766736642287,-284.11270295,0.00032876,120]
[399847619,1766736642297,-196.27809104,0.00032876,120]
[399847620,1766736642308,-190.46709859,0.00032876,120]
[399847621,1766736642319,-514.36570382,0.00032876,120]
[399847622,1766736642330,-500.0,0.00032876,120]
[399847623,1766736642341,-500.0,0.00032876,120]
[399847624,1766736642351,-500.0,0.00032876,120]
[399847625,1766736642362,-500.0,0.00032876,120]
[399847626,1766736642373,-500.0,0.00032876,120]
[399847627,1766736642384,-435.13354279,0.00032876,120]
[399847628,1766736642394,-500.0,0.00032876,120]
[399847629,1766736642405,-405.36769074,0.00032876,120]
[399847630,1766736642415,-404.66015837,0.00032876,120]
[399847631,1766736642427,-251.90552843,0.00032876,120]
[399847632,1766736642438,-500.0,0.00032877,7]
[399847633,1766736642450,-500.0,0.00032877,7]
[399847634,1766736642463,-500.0,0.00032877,7]
[399847635,1766736642474,-300.0,0.00032877,7]
[399847636,1766736642485,-4056.91,0.000329,14]
[399847637,1766736642496,-1633.51,0.000329,14]
[399847638,1766736642507,-1000.0,0.00032998,23]
[399847639,1766736642519,-150.0,0.00033,14]
[399847640,1766736642531,-1000.0,0.00033165,2]
[399847641,1766736642547,-293.0,0.00033858,3]
[399847642,1766736642558,-1000.0,0.00033998,24]
[399847644,1766736642568,-315.397,0.00034079,2]
[399847645,1766736642580,-2430.0,0.00034079,2]
[399847647,1766736642591,-612.0,0.00034547,2]
[399847648,1766736642601,-432.0,0.00034547,2]
[399847649,1766736642613,-2000.0,0.000348,2]
[399847650,1766736642623,-2000.0,0.000348,2]
[399847651,1766736642635,-168.18799133,0.00035362,2]
[399847652,1766736642646,-500.0,0.00035615,60]
[399847653,1766736642656,-1000.0,0.00035615,25]
[399847654,1766736642666,-2138.31,0.00035616,120]
[399847655,1766736642678,-4057.01190082,0.00035912,2]
[399847656,1766736642688,-1000.0,0.00035998,16]
[399847657,1766736642698,-1000.0,0.00035998,26]
[399847658,1766736642708,-5662.01086947,0.00036002,2]
[399847659,1766736642718,-293.0,0.00036012,4]
[399847660,1766736642728,-353.09426517,0.00036692,11]
[399847661,1766736642739,-2138.31,0.00036712,120]
[399847662,1766736642749,-5800.0,0.00036783,2]
[399847663,1766736642760,-5800.0,0.00036792,2]
[399847664,1766736642770,-167.43,0.000368,30]
[399847665,1766736642780,-5800.0,0.000368,2]
[399847666,1766736642790,-1000.0,0.00036998,17]
[399847667,1766736642801,-1000.0,0.00036998,27]
[399847668,1766736642811,-2430.0,0.00037079,2]
[399847669,1766736642822,-177.93131679,0.000372,120]
[399847670,1766736642832,-612.0,0.00037547,2]
[399847671,1766736642842,-432.0,0.00037547,2]
[399847672,1766736642853,-4056.91,0.000376,14]
[399847673,1766736642863,-1633.51,0.000376,14]
[399847674,1766736642873,-1000.0,0.00037688,30]
[399847675,1766736642884,-2138.31,0.00037808,120]
[399847676,1766736642894,-1087.769,0.00037819,49]
[399847677,1766736642905,-1257.0,0.0003783,20]
[399847678,1766736642916,-1000.0,0.00037998,18]
[399847679,1766736642926,-1000.0,0.00037998,28]
[399847680,1766736642937,-293.0,0.00038166,5]
[399847681,1766736642948,-150.0,0.00038219,7]
[399847682,1766736642959,-150.0,0.00038219,7]
[399847683,1766736642970,-150.0,0.00038219,7]
[399847684,1766736642981,-150.0,0.00038219,7]
[399847685,1766736642996,-150.0,0.00038219,7]
[399847686,1766736643007,-150.0,0.00038219,7]
[399847687,1766736643018,-152.42122212,0.00038219,7]
[399847688,1766736643030,-150.0,0.00038219,7]
[399847689,1766736643041,-150.0,0.00038219,7]
[399847690,1766736643052,-1257.0,0.0003822,20]
[399847691,1766736643066,-727.5,0.00038356,26]
[399847692,1766736643077,-300.0,0.00038356,120]
[399847693,1766736643088,-300.0,0.00038356,120]
[399847694,1766736643099,-300.0,0.00038356,120]
[399847695,1766736643110,-300.0,0.00038356,120]
[399847696,1766736643122,-300.0,0.00038356,120]
[399847697,1766736643134,-300.0,0.00038356,120]
[399847698,1766736643146,-300.0,0.00038356,120]
[399847699,1766736643157,-300.0,0.00038356,120]
[399847700,1766736643168,-300.0,0.00038356,120]
[399847701,1766736643180,-300.0,0.00038356,120]
[399847702,1766736643190,-300.0,0.00038356,120]
[399847703,1766736643202,-300.0,0.00038356,120]
[399847704,1766736643212,-300.0,0.00038356,120]
[399847705,1766736643223,-300.0,0.00038356,120]
[399847706,1766736643233,-300.0,0.00038356,120]
[399847707,1766736643244,-300.0,0.00038356,120]
[399847708,1766736643255,-300.0,0.00038356,120]
[399847709,1766736643267,-300.0,0.00038356,120]
[399847710,1766736643278,-300.0,0.00038356,120]
[399847711,1766736643290,-300.0,0.00038356,120]
[399847712,1766736643301,-150.0,0.00038376,7]
[399847713,1766736643313,-2000.0,0.000385,2]
[399847714,1766736643325,-2000.0,0.000385,2]
[399847715,1766736643336,-150.0,0.00038534,7]
[399847716,1766736643347,-150.0,0.0003861,30]
[399847717,1766736643358,-151.17267518,0.0003861,30]
[399847718,1766736643369,-1257.0,0.0003861,20]
[399847719,1766736643380,-500.0,0.00038658,60]
[399847720,1766736643391,-150.0,0.00038658,60]
[399847721,1766736643402,-224.36439977,0.00038658,60]
[399847722,1766736643413,-500.0,0.00038658,60]
[399847723,1766736643423,-150.0,0.00038658,60]
[399847724,1766736643434,-150.0,0.00038658,60]
[399847725,1766736643446,-150.0,0.00038658,60]
[399847726,1766736643457,-150.0,0.00038658,60]
[399847727,1766736643468,-283.88330882,0.00038658,60]
[399847728,1766736643479,-155.91494256,0.00038658,60]
[399847729,1766736643489,-211.21504498,0.00038658,60]
[399847730,1766736643502,-150.0,0.00038658,60]
[399847731,1766736643513,-500.0,0.00038685,60]
[399847732,1766736643523,-150.0,0.00038685,60]
[399847733,1766736643534,-500.0,0.00038685,60]
[399847734,1766736643546,-150.0,0.00038685,60]
[399847735,1766736643556,-150.0,0.00038685,60]
[399847736,1766736643567,-150.0,0.00038685,60]
[399847737,1766736643578,-150.0,0.00038685,60]
[399847738,1766736643589,-150.0,0.00038691,7]
[399847739,1766736643600,-500.0,0.00038713,60]
[399847740,1766736643610,-150.0,0.00038713,60]
[399847741,1766736643624,-500.0,0.00038713,60]
[399847742,1766736643636,-150.0,0.00038713,60]
[399847743,1766736643647,-150.0,0.00038713,60]
[399847744,1766736643658,-500.0,0.0003874,60]
[399847745,1766736643669,-150.0,0.0003874,60]
[399847746,1766736643680,-150.0,0.0003874,60]
[399847747,1766736643692,-500.0,0.00038768,60]
[399847748,1766736643703,-174.79963008,0.00038768,60]
[399847749,1766736643715,-150.0,0.00038768,60]
[399847750,1766736643728,-500.0,0.00038795,60]
[399847751,1766736643740,-250.0,0.00038795,60]
[399847752,1766736643752,-500.0,0.00038822,60]
[399847753,1766736643762,-150.0,0.00038826,7]
[399847754,1766736643774,-150.0,0.00038848,7]
[399847755,1766736643786,-500.0,0.0003885,60]
[399847756,1766736643797,-500.0,0.00038877,60]
[399847757,1766736643809,-2138.31,0.00038904,120]
[399847758,1766736643821,-500.0,0.00038905,60]
[399847759,1766736643833,-500.0,0.00038932,60]
[399847760,1766736643844,-500.0,0.00038959,60]
[399847761,1766736643855,-500.0,0.00038987,60]
[399847762,1766736643870,-1000.0,0.00038988,4]
[399847763,1766736643881,-1000.0,0.00038998,29]
[399847764,1766736643892,-1000.0,0.00038998,19]
[399847765,1766736643902,-1257.0,0.00039,20]
[399847766,1766736643913,-150.0,0.00039006,7]
[399847767,1766736643923,-150.0,0.00039068,7]
[399847768,1766736643935,-4057.01190082,0.00039148,2]
[399847769,1766736643944,-150.0,0.00039163,7]
[399847770,1766736643954,-5662.01086947,0.00039193,2]
[399847771,1766736643965,-150.0,0.0003932,7]
[399847772,1766736643975,-1257.0,0.0003939,20]
[399847773,1766736643986,-150.0,0.00039432,7]
[399847774,1766736644001,-150.0,0.00039477,7]
[399847775,1766736644011,-1009.0,0.000396,7]
[399847776,1766736644023,-150.0,0.00039635,7]
[399847777,1766736644035,-150.0,0.00039635,7]
[399847778,1766736644046,-150.0,0.00039635,7]
[399847779,1766736644058,-1000.0,0.00039654,2]
[399847780,1766736644069,-1257.0,0.0003978,20]
[399847781,1766736644080,-150.0,0.00039792,7]